[Event "Titled Tuesday Blitz June 07 Late 2022"]
[White "Remolar Gallen, Jose"]
[Black "Golubovskis, Maksims"]
[WhiteFideId "2215187"]
[BlackFideId "11608528"]
[WhiteElo "2205"]
[BlackElo "2102"]
[Result "0-1"]
[Round "10"]
[TimeControl "180+1"]
[Date "2022.06.07"]
[WhiteClock "0:00:02"]
[BlackClock "0:00:46"]

1. d4 {[%clk 0:03:00]}  Nf6 {[%clk 0:02:59]} 2. c4 {[%clk 0:03:00]}  e6 {[%clk 0:03:00]} 3. Nf3 {[%clk 0:03:00]}  d5 {[%clk 0:02:59]} 4. Nc3 {[%clk 0:03:00]}  Bb4 {[%clk 0:02:58]} 5. cxd5 {[%clk 0:02:59]}  exd5 {[%clk 0:02:58]} 6. Bg5 {[%clk 0:02:59]}  h6 {[%clk 0:02:57]} 7. Bh4 {[%clk 0:02:56]}  O-O {[%clk 0:02:55]} 8. e3 {[%clk 0:02:53]}  c6 {[%clk 0:02:55]} 9. Be2 {[%clk 0:02:52]}  g5 {[%clk 0:02:47]} 10. Bg3 {[%clk 0:02:51]}  Ne4 {[%clk 0:02:47]} 11. Rc1 {[%clk 0:02:46]}  Qa5 {[%clk 0:02:47]} 12. Qb3 {[%clk 0:02:33]}  Bf5 {[%clk 0:02:32]} 13. O-O {[%clk 0:02:31]}  Nxg3 {[%clk 0:02:29]} 14. hxg3 {[%clk 0:02:29]}  Nd7 {[%clk 0:02:24]} 15. a3 {[%clk 0:02:26]}  Bxc3 {[%clk 0:02:13]} 16. Rxc3 {[%clk 0:02:22]}  Rab8 {[%clk 0:02:11]} 17. Ne1 {[%clk 0:02:01]}  Nf6 {[%clk 0:02:08]} 18. Rc5 {[%clk 0:01:56]}  Qc7 {[%clk 0:02:07]} 19. Bd3 {[%clk 0:01:33]}  Be6 {[%clk 0:01:57]} 20. Qa4 {[%clk 0:01:21]}  Nd7 {[%clk 0:01:49]} 21. Rc2 {[%clk 0:01:12]}  f5 {[%clk 0:01:47]} 22. Nf3 {[%clk 0:01:06]}  a6 {[%clk 0:01:29]} 23. Rfc1 {[%clk 0:01:03]}  g4 {[%clk 0:01:26]} 24. Nd2 {[%clk 0:00:51]}  Nf6 {[%clk 0:01:24]} 25. Nb3 {[%clk 0:00:48]}  h5 {[%clk 0:01:19]} 26. Nc5 {[%clk 0:00:45]}  Qd6 {[%clk 0:01:16]} 27. b4 {[%clk 0:00:36]}  h4 {[%clk 0:01:08]} 28. gxh4 {[%clk 0:00:36]}  g3 {[%clk 0:01:08]} 29. f3 {[%clk 0:00:30]}  Rf7 {[%clk 0:01:08]} 30. Rc3 {[%clk 0:00:16]}  Rh7 {[%clk 0:01:06]} 31. Qc2 {[%clk 0:00:15]}  Rh5 {[%clk 0:00:52]} 32. Rd1 {[%clk 0:00:08]}  Kg7 {[%clk 0:00:52]} 33. Qe2 {[%clk 0:00:05]}  Rxh4 {[%clk 0:00:49]} 34. f4 {[%clk 0:00:02]}  Rbh8 {[%clk 0:00:46]} 0-1


[Site "https://www.chess.com"]

[Event "Titled Tuesday Blitz June 07 Late 2022"]
[White "Sarana, Alexey"]
[Black "Cruz Mendez, Jean Marco"]
[WhiteFideId "24133795"]
[BlackFideId "3526402"]
[WhiteElo "2666"]
[BlackElo "2064"]
[Result "1-0"]
[Round "10"]
[TimeControl "180+1"]
[Date "2022.06.07"]
[WhiteClock "0:02:06"]
[BlackClock "0:00:16"]

1. d4 {[%clk 0:03:00]}  Nf6 {[%clk 0:02:59]} 2. c4 {[%clk 0:03:01]}  g6 {[%clk 0:02:59]} 3. Nc3 {[%clk 0:03:02]}  Bg7 {[%clk 0:02:59]} 4. e4 {[%clk 0:03:01]}  d6 {[%clk 0:03:00]} 5. g3 {[%clk 0:03:00]}  O-O {[%clk 0:03:00]} 6. Bg2 {[%clk 0:03:00]}  e5 {[%clk 0:02:58]} 7. Nf3 {[%clk 0:03:00]}  Nbd7 {[%clk 0:02:56]} 8. O-O {[%clk 0:03:00]}  exd4 {[%clk 0:02:55]} 9. Nxd4 {[%clk 0:03:01]}  Nc5 {[%clk 0:02:55]} 10. Be3 {[%clk 0:02:57]}  c6 {[%clk 0:02:55]} 11. h3 {[%clk 0:02:56]}  Re8 {[%clk 0:02:55]} 12. Qc2 {[%clk 0:02:56]}  Qc7 {[%clk 0:02:54]} 13. Rad1 {[%clk 0:02:56]}  Ne6 {[%clk 0:02:51]} 14. Nde2 {[%clk 0:02:51]}  b6 {[%clk 0:02:41]} 15. Kh2 {[%clk 0:02:46]}  Bb7 {[%clk 0:02:41]} 16. Rfe1 {[%clk 0:02:47]}  Rad8 {[%clk 0:02:41]} 17. Rd2 {[%clk 0:02:38]}  a6 {[%clk 0:02:25]} 18. a4 {[%clk 0:02:34]}  c5 {[%clk 0:02:15]} 19. Red1 {[%clk 0:02:31]}  Qb8 {[%clk 0:02:05]} 20. f4 {[%clk 0:02:28]}  h5 {[%clk 0:01:50]} 21. Bf3 {[%clk 0:02:26]}  h4 {[%clk 0:01:40]} 22. g4 {[%clk 0:02:26]}  Qc7 {[%clk 0:00:35]} 23. Kg2 {[%clk 0:02:21]}  Qb8 {[%clk 0:00:34]} 24. Bf2 {[%clk 0:02:11]}  g5 {[%clk 0:00:32]} 25. f5 {[%clk 0:02:11]}  Nd4 {[%clk 0:00:27]} 26. Rxd4 {[%clk 0:02:11]}  cxd4 {[%clk 0:00:28]} 27. Bxd4 {[%clk 0:02:07]}  Qa8 {[%clk 0:00:16]} 28. Nd5 {[%clk 0:02:07]}  Nxd5 {[%clk 0:00:16]} 29. cxd5 {[%clk 0:02:08]}  Rc8 {[%clk 0:00:15]} 30. Qd2 {[%clk 0:02:08]}  Be5 {[%clk 0:00:15]} 31. Qxg5+ {[%clk 0:02:07]}  Kf8 {[%clk 0:00:15]} 32. f6 {[%clk 0:02:07]}  Red8 {[%clk 0:00:15]} 33. Bxe5 {[%clk 0:02:06]}  Ke8 {[%clk 0:00:16]} 34. Qg8+ {[%clk 0:02:06]} 1-0


[Site "https://www.chess.com"]

[Event "Titled Tuesday Blitz June 07 Late 2022"]
[White "Silva, Miguel Antonio Neto"]
[Black "Rustemov, Alexander"]
[WhiteFideId "1911929"]
[BlackFideId "4119002"]
[WhiteElo "2204"]
[BlackElo "2770"]
[Result "1-0"]
[Round "10"]
[TimeControl "180+1"]
[Date "2022.06.07"]
[WhiteClock "0:00:25"]
[BlackClock "0:00:09"]

1. Nf3 {[%clk 0:03:00]}  d5 {[%clk 0:02:56]} 2. c4 {[%clk 0:02:50]}  d4 {[%clk 0:02:53]} 3. e3 {[%clk 0:02:49]}  c5 {[%clk 0:02:53]} 4. b4 {[%clk 0:02:50]}  dxe3 {[%clk 0:02:46]} 5. fxe3 {[%clk 0:02:49]}  cxb4 {[%clk 0:02:46]} 6. d4 {[%clk 0:02:50]}  Nf6 {[%clk 0:02:46]} 7. Bd3 {[%clk 0:02:50]}  e6 {[%clk 0:02:44]} 8. O-O {[%clk 0:02:49]}  Be7 {[%clk 0:02:43]} 9. a3 {[%clk 0:02:45]}  Nc6 {[%clk 0:02:40]} 10. Nbd2 {[%clk 0:02:43]}  O-O {[%clk 0:02:39]} 11. axb4 {[%clk 0:02:26]}  Nxb4 {[%clk 0:02:37]} 12. Bb1 {[%clk 0:02:26]}  b6 {[%clk 0:02:25]} 13. Bb2 {[%clk 0:02:15]}  a5 {[%clk 0:02:22]} 14. Ne5 {[%clk 0:02:08]}  Ba6 {[%clk 0:02:20]} 15. Qf3 {[%clk 0:02:03]}  Rc8 {[%clk 0:02:19]} 16. Qh3 {[%clk 0:01:57]}  g6 {[%clk 0:02:14]} 17. Qh6 {[%clk 0:01:41]}  Nc6 {[%clk 0:02:01]} 18. Nxg6 {[%clk 0:01:36]}  fxg6 {[%clk 0:01:59]} 19. Bxg6 {[%clk 0:01:34]}  Qd7 {[%clk 0:01:31]} 20. d5 {[%clk 0:01:15]}  Bc5 {[%clk 0:01:00]} 21. Rxf6 {[%clk 0:01:06]}  Rxf6 {[%clk 0:00:50]} 22. Bxf6 {[%clk 0:01:01]}  Rf8 {[%clk 0:00:49]} 23. dxc6 {[%clk 0:00:53]}  Qc7 {[%clk 0:00:42]} 24. Ne4 {[%clk 0:00:46]}  Bxc4 {[%clk 0:00:32]} 25. Nxc5 {[%clk 0:00:30]}  Rxf6 {[%clk 0:00:29]} 26. Bxh7+ {[%clk 0:00:25]}  Qxh7 {[%clk 0:00:26]} 27. Qxf6 {[%clk 0:00:20]}  bxc5 {[%clk 0:00:27]} 28. Qd8+ {[%clk 0:00:20]}  Kg7 {[%clk 0:00:27]} 29. Qd7+ {[%clk 0:00:20]}  Kg6 {[%clk 0:00:27]} 30. Qxh7+ {[%clk 0:00:20]}  Kxh7 {[%clk 0:00:11]} 31. c7 {[%clk 0:00:20]}  Ba6 {[%clk 0:00:11]} 32. Rxa5 {[%clk 0:00:20]}  Bc8 {[%clk 0:00:10]} 33. Ra8 {[%clk 0:00:17]}  Bb7 {[%clk 0:00:10]} 34. c8=Q {[%clk 0:00:17]}  Bxc8 {[%clk 0:00:10]} 35. Rxc8 {[%clk 0:00:18]}  Kg6 {[%clk 0:00:11]} 36. Rxc5 {[%clk 0:00:19]}  Kf6 {[%clk 0:00:12]} 37. Kf2 {[%clk 0:00:19]}  Ke7 {[%clk 0:00:11]} 38. Kf3 {[%clk 0:00:19]}  Kd6 {[%clk 0:00:11]} 39. Ra5 {[%clk 0:00:20]}  Kc6 {[%clk 0:00:10]} 40. Ke4 {[%clk 0:00:21]}  Kd6 {[%clk 0:00:10]} 41. Re5 {[%clk 0:00:20]}  Ke7 {[%clk 0:00:10]} 42. g4 {[%clk 0:00:21]}  Kf6 {[%clk 0:00:10]} 43. h4 {[%clk 0:00:22]}  Kf7 {[%clk 0:00:10]} 44. h5 {[%clk 0:00:23]}  Kf6 {[%clk 0:00:10]} 45. Kf4 {[%clk 0:00:24]}  Kf7 {[%clk 0:00:10]} 46. e4 {[%clk 0:00:25]}  Kf6 {[%clk 0:00:11]} 47. g5+ {[%clk 0:00:26]}  Kf7 {[%clk 0:00:11]} 48. h6 {[%clk 0:00:26]}  Ke7 {[%clk 0:00:11]} 49. g6 {[%clk 0:00:25]}  Kf6 {[%clk 0:00:11]} 50. g7 {[%clk 0:00:26]}  Kf7 {[%clk 0:00:11]} 51. Rxe6 {[%clk 0:00:26]}  Kxe6 {[%clk 0:00:08]} 52. g8=Q+ {[%clk 0:00:25]}  Kd6 {[%clk 0:00:08]} 53. Qd5+ {[%clk 0:00:25]}  Kc7 {[%clk 0:00:08]} 54. Qe6 {[%clk 0:00:25]}  Kb7 {[%clk 0:00:08]} 55. Qd6 {[%clk 0:00:25]}  Ka7 {[%clk 0:00:08]} 56. Qb4 {[%clk 0:00:25]}  Ka6 {[%clk 0:00:09]} 57. Ke5 {[%clk 0:00:25]}  Ka7 {[%clk 0:00:09]} 58. Qb5 {[%clk 0:00:25]}  Ka8 {[%clk 0:00:08]} 59. Kd6 {[%clk 0:00:25]}  Ka7 {[%clk 0:00:09]} 60. Kc7 {[%clk 0:00:25]}  Ka8 {[%clk 0:00:09]} 61. Qa5# {[%clk 0:00:25]} 1-0


[Site "https://www.chess.com"]

[Event "Titled Tuesday Blitz June 07 Late 2022"]
[White "Slugin, Sergey"]
[Black "Yuan, Qingyu"]
[WhiteFideId "4122569"]
[BlackFideId "8609772"]
[WhiteElo "2358"]
[BlackElo "2359"]
[Result "1/2-1/2"]
[Round "10"]
[TimeControl "180+1"]
[Date "2022.06.07"]
[WhiteClock "0:00:05"]
[BlackClock "0:00:09"]

1. c4 {[%clk 0:03:00]}  e6 {[%clk 0:03:00]} 2. Nf3 {[%clk 0:03:00]}  d5 {[%clk 0:03:00]} 3. d4 {[%clk 0:03:01]}  Nf6 {[%clk 0:03:01]} 4. g3 {[%clk 0:03:01]}  dxc4 {[%clk 0:03:01]} 5. Bg2 {[%clk 0:03:02]}  c5 {[%clk 0:03:02]} 6. O-O {[%clk 0:02:59]}  Nc6 {[%clk 0:03:02]} 7. dxc5 {[%clk 0:02:59]}  Qxd1 {[%clk 0:03:02]} 8. Rxd1 {[%clk 0:03:00]}  Bxc5 {[%clk 0:03:02]} 9. Nbd2 {[%clk 0:03:01]}  c3 {[%clk 0:03:02]} 10. bxc3 {[%clk 0:03:02]}  O-O {[%clk 0:03:03]} 11. Nb3 {[%clk 0:02:55]}  Be7 {[%clk 0:03:03]} 12. c4 {[%clk 0:02:56]}  Bd7 {[%clk 0:03:03]} 13. Bb2 {[%clk 0:02:56]}  Rfc8 {[%clk 0:03:03]} 14. c5 {[%clk 0:02:51]}  Be8 {[%clk 0:02:54]} 15. Nfd2 {[%clk 0:02:45]}  b6 {[%clk 0:02:52]} 16. cxb6 {[%clk 0:02:43]}  axb6 {[%clk 0:02:52]} 17. Nc4 {[%clk 0:02:44]}  Rab8 {[%clk 0:02:46]} 18. Nd6 {[%clk 0:02:45]}  Rc7 {[%clk 0:02:28]} 19. Rac1 {[%clk 0:02:39]}  Rd8 {[%clk 0:01:52]} 20. Bxf6 {[%clk 0:01:42]}  Rxd6 {[%clk 0:01:51]} 21. Bxc6 {[%clk 0:01:36]}  Rxd1+ {[%clk 0:00:52]} 22. Rxd1 {[%clk 0:01:37]}  Bxc6 {[%clk 0:00:51]} 23. Bxe7 {[%clk 0:01:33]}  Rxe7 {[%clk 0:00:52]} 24. Rd6 {[%clk 0:01:30]}  Be8 {[%clk 0:00:37]} 25. Rxb6 {[%clk 0:01:30]}  g6 {[%clk 0:00:37]} 26. f3 {[%clk 0:01:05]}  Ra7 {[%clk 0:00:33]} 27. Nc1 {[%clk 0:01:06]}  Kf8 {[%clk 0:00:23]} 28. Kf2 {[%clk 0:01:05]}  h5 {[%clk 0:00:23]} 29. h4 {[%clk 0:01:05]}  Ke7 {[%clk 0:00:22]} 30. Rb2 {[%clk 0:01:04]}  Bc6 {[%clk 0:00:22]} 31. Nd3 {[%clk 0:01:01]}  Bd5 {[%clk 0:00:21]} 32. Nb4 {[%clk 0:01:01]}  Bb7 {[%clk 0:00:18]} 33. Rc2 {[%clk 0:00:56]}  Kd6 {[%clk 0:00:18]} 34. Rd2+ {[%clk 0:00:56]}  Ke7 {[%clk 0:00:19]} 35. Rd4 {[%clk 0:00:48]}  Ra5 {[%clk 0:00:16]} 36. a4 {[%clk 0:00:39]}  Ke8 {[%clk 0:00:12]} 37. Na2 {[%clk 0:00:30]}  Bc6 {[%clk 0:00:11]} 38. Nc3 {[%clk 0:00:30]}  Rc5 {[%clk 0:00:12]} 39. Rd3 {[%clk 0:00:27]}  Rc4 {[%clk 0:00:12]} 40. a5 {[%clk 0:00:13]}  Rc5 {[%clk 0:00:12]} 41. a6 {[%clk 0:00:13]}  Ra5 {[%clk 0:00:13]} 42. Rd6 {[%clk 0:00:06]}  Rxa6 {[%clk 0:00:13]} 43. Rd2 {[%clk 0:00:05]}  Ke7 {[%clk 0:00:13]} 44. Nd1 {[%clk 0:00:05]}  Ra3 {[%clk 0:00:13]} 45. Nb2 {[%clk 0:00:05]}  Rb3 {[%clk 0:00:13]} 46. Nc4 {[%clk 0:00:05]}  Bd5 {[%clk 0:00:12]} 47. Ne3 {[%clk 0:00:05]}  Bc6 {[%clk 0:00:12]} 48. Nc4 {[%clk 0:00:06]}  Rb4 {[%clk 0:00:11]} 49. Ne5 {[%clk 0:00:05]}  Be8 {[%clk 0:00:12]} 50. Ra2 {[%clk 0:00:04]}  Rb7 {[%clk 0:00:12]} 51. Nd3 {[%clk 0:00:04]}  f6 {[%clk 0:00:12]} 52. Rb2 {[%clk 0:00:03]}  Rc7 {[%clk 0:00:12]} 53. Rb6 {[%clk 0:00:03]}  Bd7 {[%clk 0:00:10]} 54. Nb4 {[%clk 0:00:03]}  Rc4 {[%clk 0:00:09]} 55. Rb7 {[%clk 0:00:03]}  Kd6 {[%clk 0:00:09]} 56. Nd3 {[%clk 0:00:03]}  Rc8 {[%clk 0:00:09]} 57. Rb6+ {[%clk 0:00:04]}  Ke7 {[%clk 0:00:09]} 58. Rb4 {[%clk 0:00:04]}  e5 {[%clk 0:00:08]} 59. Rb6 {[%clk 0:00:05]}  Rc6 {[%clk 0:00:08]} 60. Rxc6 {[%clk 0:00:04]}  Bxc6 {[%clk 0:00:09]} 61. e4 {[%clk 0:00:05]}  Ke6 {[%clk 0:00:09]} 62. Ke3 {[%clk 0:00:06]}  Kd6 {[%clk 0:00:09]} 63. Nf2 {[%clk 0:00:05]}  Ke6 {[%clk 0:00:09]} 64. g4 {[%clk 0:00:05]}  Be8 {[%clk 0:00:08]} 65. gxh5 {[%clk 0:00:05]}  gxh5 {[%clk 0:00:09]} 1/2-1/2


[Site "https://www.chess.com"]

[Event "Titled Tuesday Blitz June 07 Late 2022"]
[White "Souleidis, Georgios"]
[Black "Badelka, Olga"]
[WhiteFideId "4206827"]
[BlackFideId "13509926"]
[WhiteElo "2401"]
[BlackElo "2165"]
[Result "1-0"]
[Round "10"]
[TimeControl "180+1"]
[Date "2022.06.07"]
[WhiteClock "0:00:32"]
[BlackClock "0:00:04"]

1. e4 {[%clk 0:03:00]}  c5 {[%clk 0:02:59]} 2. Be2 {[%clk 0:02:59]}  Nc6 {[%clk 0:02:59]} 3. d3 {[%clk 0:03:00]}  g6 {[%clk 0:02:59]} 4. f4 {[%clk 0:03:00]}  Bg7 {[%clk 0:03:00]} 5. Nf3 {[%clk 0:03:01]}  d6 {[%clk 0:02:59]} 6. O-O {[%clk 0:03:02]}  e6 {[%clk 0:02:57]} 7. c3 {[%clk 0:03:01]}  Nge7 {[%clk 0:02:43]} 8. Be3 {[%clk 0:03:00]}  e5 {[%clk 0:02:35]} 9. fxe5 {[%clk 0:02:59]}  Nxe5 {[%clk 0:02:35]} 10. Nxe5 {[%clk 0:02:57]}  Bxe5 {[%clk 0:02:36]} 11. d4 {[%clk 0:02:54]}  cxd4 {[%clk 0:02:35]} 12. cxd4 {[%clk 0:02:55]}  Bg7 {[%clk 0:02:35]} 13. Nc3 {[%clk 0:02:54]}  O-O {[%clk 0:02:34]} 14. Qd2 {[%clk 0:02:54]}  Be6 {[%clk 0:02:31]} 15. d5 {[%clk 0:02:49]}  Bd7 {[%clk 0:02:30]} 16. Kh1 {[%clk 0:02:36]}  Rc8 {[%clk 0:02:05]} 17. Bg5 {[%clk 0:02:16]}  f6 {[%clk 0:01:46]} 18. Bf4 {[%clk 0:02:15]}  Qb6 {[%clk 0:01:46]} 19. a4 {[%clk 0:02:02]}  a5 {[%clk 0:01:41]} 20. Bb5 {[%clk 0:01:55]}  Rfd8 {[%clk 0:01:37]} 21. Bxd7 {[%clk 0:01:51]}  Rxd7 {[%clk 0:01:37]} 22. Nb5 {[%clk 0:01:52]}  f5 {[%clk 0:01:32]} 23. exf5 {[%clk 0:01:13]}  Nxf5 {[%clk 0:01:30]} 24. Rac1 {[%clk 0:01:09]}  Re8 {[%clk 0:01:25]} 25. Rfe1 {[%clk 0:01:05]}  Rde7 {[%clk 0:01:00]} 26. Rxe7 {[%clk 0:01:03]}  Rxe7 {[%clk 0:01:01]} 27. g4 {[%clk 0:00:47]}  Nd4 {[%clk 0:00:13]} 28. Rc8+ {[%clk 0:00:46]}  Bf8 {[%clk 0:00:06]} 29. Qxd4 {[%clk 0:00:40]}  Re1+ {[%clk 0:00:05]} 30. Kg2 {[%clk 0:00:40]}  Re2+ {[%clk 0:00:04]} 31. Kf3 {[%clk 0:00:32]} 1-0


[Site "https://www.chess.com"]

[Event "Titled Tuesday Blitz June 07 Late 2022"]
[White "Tahbaz, Arash"]
[Black "Grigoriants, Sergey"]
[WhiteFideId "12528846"]
[BlackFideId "4130804"]
[WhiteElo "2389"]
[BlackElo "2502"]
[Result "1-0"]
[Round "10"]
[TimeControl "180+1"]
[Date "2022.06.07"]
[WhiteClock "0:00:16"]
[BlackClock "0:00:01"]

1. Nf3 {[%clk 0:03:00]}  d5 {[%clk 0:02:58]} 2. g3 {[%clk 0:03:01]}  c6 {[%clk 0:02:54]} 3. Bg2 {[%clk 0:03:01]}  Bg4 {[%clk 0:02:54]} 4. O-O {[%clk 0:03:02]}  e6 {[%clk 0:02:53]} 5. d3 {[%clk 0:03:03]}  Bd6 {[%clk 0:02:49]} 6. Nbd2 {[%clk 0:03:03]}  Ne7 {[%clk 0:02:49]} 7. b3 {[%clk 0:03:03]}  O-O {[%clk 0:02:48]} 8. Bb2 {[%clk 0:03:04]}  Nd7 {[%clk 0:02:48]} 9. e4 {[%clk 0:03:05]}  Bh5 {[%clk 0:02:47]} 10. Qe2 {[%clk 0:02:58]}  c5 {[%clk 0:02:45]} 11. h3 {[%clk 0:02:57]}  Nc6 {[%clk 0:02:43]} 12. Rfe1 {[%clk 0:02:42]}  h6 {[%clk 0:02:37]} 13. Qe3 {[%clk 0:02:37]}  a5 {[%clk 0:02:09]} 14. a4 {[%clk 0:02:35]}  Nb4 {[%clk 0:02:08]} 15. Rec1 {[%clk 0:02:35]}  Re8 {[%clk 0:02:06]} 16. d4 {[%clk 0:02:16]}  Rc8 {[%clk 0:02:00]} 17. c4 {[%clk 0:02:13]}  cxd4 {[%clk 0:01:55]} 18. Nxd4 {[%clk 0:01:47]}  e5 {[%clk 0:01:55]} 19. Nb5 {[%clk 0:01:22]}  Bc5 {[%clk 0:01:53]} 20. Qe1 {[%clk 0:01:05]}  Nd3 {[%clk 0:01:52]} 21. Qf1 {[%clk 0:01:05]}  Bxf2+ {[%clk 0:01:29]} 22. Kh2 {[%clk 0:01:03]}  Nxc1 {[%clk 0:01:21]} 23. Bxc1 {[%clk 0:00:34]}  Be3 {[%clk 0:01:11]} 24. exd5 {[%clk 0:00:32]}  Nc5 {[%clk 0:01:10]} 25. Ne4 {[%clk 0:00:31]}  Bxc1 {[%clk 0:01:04]} 26. Nxc5 {[%clk 0:00:32]}  Rxc5 {[%clk 0:00:58]} 27. Rxc1 {[%clk 0:00:32]}  Bg6 {[%clk 0:00:56]} 28. Qf2 {[%clk 0:00:33]}  b6 {[%clk 0:00:56]} 29. h4 {[%clk 0:00:30]}  h5 {[%clk 0:00:50]} 30. Bh3 {[%clk 0:00:29]}  e4 {[%clk 0:00:44]} 31. Qe3 {[%clk 0:00:28]}  Qf6 {[%clk 0:00:42]} 32. Rf1 {[%clk 0:00:25]}  Qe5 {[%clk 0:00:42]} 33. Nd4 {[%clk 0:00:23]}  Rf8 {[%clk 0:00:37]} 34. Bf5 {[%clk 0:00:22]}  Qd6 {[%clk 0:00:28]} 35. Bxg6 {[%clk 0:00:20]}  Qxg6 {[%clk 0:00:25]} 36. Rf5 {[%clk 0:00:20]}  Re8 {[%clk 0:00:23]} 37. Rg5 {[%clk 0:00:21]}  Qf6 {[%clk 0:00:22]} 38. Rxh5 {[%clk 0:00:21]}  g6 {[%clk 0:00:21]} 39. Rg5 {[%clk 0:00:22]}  Rc7 {[%clk 0:00:19]} 40. Kg2 {[%clk 0:00:22]}  Re5 {[%clk 0:00:16]} 41. Rg4 {[%clk 0:00:21]}  Rce7 {[%clk 0:00:15]} 42. Rf4 {[%clk 0:00:20]}  Qd6 {[%clk 0:00:16]} 43. Nc6 {[%clk 0:00:20]}  Re8 {[%clk 0:00:12]} 44. Nxe5 {[%clk 0:00:20]}  Qxe5 {[%clk 0:00:13]} 45. Rf2 {[%clk 0:00:19]}  Qd6 {[%clk 0:00:07]} 46. h5 {[%clk 0:00:18]}  gxh5 {[%clk 0:00:05]} 47. Rf5 {[%clk 0:00:19]}  f6 {[%clk 0:00:04]} 48. Qh6 {[%clk 0:00:17]}  Qf8 {[%clk 0:00:01]} 49. Qg6+ {[%clk 0:00:16]}  Qg7 {[%clk 0:00:01]} 50. Qxe8+ {[%clk 0:00:16]} 1-0


[Site "https://www.chess.com"]

[Event "Titled Tuesday Blitz June 07 Late 2022"]
[White "Vasquez Schroeder, Rodrigo"]
[Black "Romanchuk, Viktor"]
[WhiteFideId "3400042"]
[BlackFideId "14109271"]
[WhiteElo "2567"]
[BlackElo "2242"]
[Result "1-0"]
[Round "10"]
[TimeControl "180+1"]
[Date "2022.06.07"]
[WhiteClock "0:01:58"]
[BlackClock "0:01:16"]

1. e4 {[%clk 0:03:00]}  e6 {[%clk 0:02:52]} 2. d4 {[%clk 0:02:59]}  d5 {[%clk 0:02:51]} 3. Nc3 {[%clk 0:03:00]}  dxe4 {[%clk 0:02:50]} 4. Nxe4 {[%clk 0:02:59]}  Nd7 {[%clk 0:02:51]} 5. Nf3 {[%clk 0:02:56]}  Ngf6 {[%clk 0:02:52]} 6. Bg5 {[%clk 0:02:57]}  h6 {[%clk 0:02:51]} 7. Nxf6+ {[%clk 0:02:55]}  Nxf6 {[%clk 0:02:52]} 8. Bh4 {[%clk 0:02:56]}  c5 {[%clk 0:02:51]} 9. Bb5+ {[%clk 0:02:52]}  Bd7 {[%clk 0:02:51]} 10. Bxd7+ {[%clk 0:02:53]}  Qxd7 {[%clk 0:02:51]} 11. Qe2 {[%clk 0:02:53]}  cxd4 {[%clk 0:02:50]} 12. O-O-O {[%clk 0:02:53]}  Be7 {[%clk 0:02:32]} 13. Rxd4 {[%clk 0:02:52]}  Qc6 {[%clk 0:02:24]} 14. Rhd1 {[%clk 0:02:48]}  O-O {[%clk 0:02:23]} 15. Kb1 {[%clk 0:02:47]}  Rad8 {[%clk 0:02:19]} 16. c4 {[%clk 0:02:41]}  Rxd4 {[%clk 0:02:17]} 17. Rxd4 {[%clk 0:02:41]}  Rd8 {[%clk 0:02:17]} 18. Rxd8+ {[%clk 0:02:38]}  Bxd8 {[%clk 0:02:18]} 19. Qd3 {[%clk 0:02:32]}  Be7 {[%clk 0:02:12]} 20. b3 {[%clk 0:02:31]}  Kf8 {[%clk 0:02:09]} 21. Kc2 {[%clk 0:02:26]}  Qe4 {[%clk 0:02:08]} 22. Bxf6 {[%clk 0:02:22]}  Qxd3+ {[%clk 0:02:07]} 23. Kxd3 {[%clk 0:02:23]}  Bxf6 {[%clk 0:02:08]} 24. c5 {[%clk 0:02:22]}  Ke7 {[%clk 0:02:05]} 25. Kc4 {[%clk 0:02:22]}  a6 {[%clk 0:02:02]} 26. b4 {[%clk 0:02:22]}  Kd7 {[%clk 0:01:58]} 27. a4 {[%clk 0:02:21]}  g6 {[%clk 0:01:55]} 28. Nd2 {[%clk 0:02:14]}  Be5 {[%clk 0:01:50]} 29. h3 {[%clk 0:02:12]}  Bf4 {[%clk 0:01:41]} 30. Nf3 {[%clk 0:02:07]}  Bb8 {[%clk 0:01:35]} 31. Nd4 {[%clk 0:02:05]}  e5 {[%clk 0:01:31]} 32. Nb3 {[%clk 0:02:05]}  Bc7 {[%clk 0:01:23]} 33. Kd5 {[%clk 0:02:02]}  f6 {[%clk 0:01:22]} 34. Nd2 {[%clk 0:01:59]}  Ke7 {[%clk 0:01:18]} 35. Nc4 {[%clk 0:01:58]}  Bb8 {[%clk 0:01:16]} 1-0


[Site "https://www.chess.com"]

[Event "Titled Tuesday Blitz June 07 Late 2022"]
[White "Vivas Zamora, Fabian Ernesto"]
[Black "Hjartarson, Johann"]
[WhiteFideId "3902480"]
[BlackFideId "2300044"]
[WhiteElo "2014"]
[BlackElo "2458"]
[Result "0-1"]
[Round "10"]
[TimeControl "180+1"]
[Date "2022.06.07"]
[WhiteClock "0:00:01"]
[BlackClock "0:00:36"]

1. c4 {[%clk 0:02:58]}  g6 {[%clk 0:02:58]} 2. d4 {[%clk 0:02:55]}  Bg7 {[%clk 0:02:58]} 3. Nc3 {[%clk 0:02:54]}  d6 {[%clk 0:02:57]} 4. Nf3 {[%clk 0:02:52]}  Nf6 {[%clk 0:02:56]} 5. g3 {[%clk 0:02:51]}  O-O {[%clk 0:02:56]} 6. Bg2 {[%clk 0:02:52]}  Nbd7 {[%clk 0:02:56]} 7. O-O {[%clk 0:02:52]}  e5 {[%clk 0:02:56]} 8. e4 {[%clk 0:02:52]}  exd4 {[%clk 0:02:52]} 9. Nxd4 {[%clk 0:02:53]}  Re8 {[%clk 0:02:51]} 10. h3 {[%clk 0:02:50]}  a6 {[%clk 0:02:51]} 11. b3 {[%clk 0:02:40]}  Rb8 {[%clk 0:02:49]} 12. Bb2 {[%clk 0:02:26]}  Nc5 {[%clk 0:02:33]} 13. Qc2 {[%clk 0:02:14]}  Bd7 {[%clk 0:02:32]} 14. Rad1 {[%clk 0:01:55]}  Qc8 {[%clk 0:02:30]} 15. Kh2 {[%clk 0:01:52]}  b5 {[%clk 0:02:27]} 16. cxb5 {[%clk 0:01:50]}  axb5 {[%clk 0:02:27]} 17. b4 {[%clk 0:01:01]}  Ne6 {[%clk 0:02:23]} 18. Nd5 {[%clk 0:00:53]}  Nxd4 {[%clk 0:02:00]} 19. Bxd4 {[%clk 0:00:51]}  Nxd5 {[%clk 0:02:00]} 20. exd5 {[%clk 0:00:49]}  Bxd4 {[%clk 0:01:57]} 21. Rxd4 {[%clk 0:00:50]}  Ra8 {[%clk 0:01:56]} 22. Rc1 {[%clk 0:00:49]}  Ra7 {[%clk 0:01:56]} 23. Rd3 {[%clk 0:00:44]}  Bf5 {[%clk 0:01:52]} 24. Bf1 {[%clk 0:00:29]}  Bxd3 {[%clk 0:01:47]} 25. Bxd3 {[%clk 0:00:30]}  Qa8 {[%clk 0:01:46]} 26. Bxb5 {[%clk 0:00:26]}  Rxa2 {[%clk 0:01:36]} 27. Qc6 {[%clk 0:00:17]}  Qxc6 {[%clk 0:01:31]} 28. Rxc6 {[%clk 0:00:04]}  Rxf2+ {[%clk 0:01:26]} 29. Kg1 {[%clk 0:00:05]}  Rb2 {[%clk 0:01:25]} 30. Rc1 {[%clk 0:00:01]}  Re3 {[%clk 0:01:20]} 31. Bd7 {[%clk 0:00:01]}  Rxg3+ {[%clk 0:01:18]} 32. Kf1 {[%clk 0:00:01]}  Rxb4 {[%clk 0:01:16]} 33. Rxc7 {[%clk 0:00:02]}  Rd4 {[%clk 0:01:12]} 34. Be8 {[%clk 0:00:02]}  Rf3+ {[%clk 0:01:09]} 35. Ke2 {[%clk 0:00:02]}  Rf5 {[%clk 0:01:07]} 36. Bc6 {[%clk 0:00:03]}  Re5+ {[%clk 0:01:00]} 37. Kf3 {[%clk 0:00:03]}  Rd3+ {[%clk 0:00:57]} 38. Kf4 {[%clk 0:00:03]}  h5 {[%clk 0:00:52]} 39. h4 {[%clk 0:00:03]}  Rd4+ {[%clk 0:00:51]} 40. Kf3 {[%clk 0:00:02]}  Rxh4 {[%clk 0:00:44]} 41. Rd7 {[%clk 0:00:02]}  Rd4 {[%clk 0:00:42]} 42. Rxd6 {[%clk 0:00:02]}  h4 {[%clk 0:00:42]} 43. Rd8+ {[%clk 0:00:02]}  Kg7 {[%clk 0:00:41]} 44. d6 {[%clk 0:00:03]}  Re6 {[%clk 0:00:36]} 45. Ba4 {[%clk 0:00:01]} 0-1


[Site "https://www.chess.com"]